[Event "VII GM Barcelona CC 2022"]
[Site "Barcelona"]
[Date "2022.05.10"]
[Round "1.1"]
[White "Munoz, Miguel"]
[Black "Pajeken, Jakob Leon"]
[Result "1/2-1/2"]
[ECO "B51"]
[WhiteElo "2421"]
[BlackElo "2398"]
[Annotator "TA"]
[PlyCount "27"]
[EventDate "2022.05.10"]
[EventType "tourn"]
[EventCountry "ESP"]
[SourceTitle "playchess.com"]
[Source "ChessBase"]
[SourceQuality "1"]
[TimeControl "5400+30"]

{[%evp 11,27,1,10,10,12,15,5,15,16,16,19,0,16,0,8,0,7,0]} 1. e4 {[%emt 0:12:51]} c5 {[%emt 0:00:15]} 2. Nf3 {[%emt 0:00:16]} d6 {[%emt 0:00:05]} 3. Bb5+ {[%emt 0:00:14]} Nd7 {[%emt 0:00:05]} 4. d4 {[%emt 0:00:11]} cxd4 {[%emt 0:00:20]} 5. Qxd4 {[%emt 0:00:06]} a6 {[%emt 0:00:13]} 6. Bxd7+ {[%emt 0:00:18]} Bxd7 {[%emt 0:00:15] The position is equal.} 7. c4 {[%emt 0:00:14] B51: Sicilian: Moscow Variation (3 Bb5+) without 3...Bd7.} e5 {[%emt 0:00:21]} 8. Qd3 {[%emt 0:00:07]} b5 {[%emt 0:00:15]} 9. Nc3 {[%emt 0:00:22][%cal Rc4b5]} bxc4 {[%emt 0:00:08]} 10. Qxc4 {[%emt 0:00:07] [#]} Be6 $146 {[%emt 0:00:11]} ({Predecessor:} 10... Qc8 11. Qd3 Qb7 12. O-O h6 13. Nd2 Be6 14. Nc4 Qc6 15. b3 Nf6 16. Ne3 Rc8 17. Bd2 Be7 18. Rac1 Qb7 19. Ncd5 O-O 20. Nxe7+ Qxe7 21. Rxc8 Rxc8 {½-½ (41) Carlsen,M (2863)-Svidler,P (2723) chess24.com INT 2020}) 11. Qc6+ {[%emt 0:08:56] 11.Qc6+ is better than 11.Qd3.} Bd7 {[%emt 0:00:28]} 12. Qc4 {[%emt 0:00:09]} Be6 {[%emt 0:01:39]} 13. Qc6+ {[%emt 0:04:50]} Bd7 {[%emt 0:00:16]} 14. Qc4 {[%emt 1:08:49] A rather calm draw.  Weighted Error Value: White=0.06 (flawless) /Black=0.00 (flawless)} 1/2-1/2

[Event "VII GM Barcelona CC 2022"]
[Site "Barcelona"]
[Date "2022.05.10"]
[Round "1.2"]
[White "Rodriguez Lopez, Rafael"]
[Black "Del Prado Rodriguez, Xulio"]
[Result "1/2-1/2"]
[ECO "B97"]
[WhiteElo "2176"]
[BlackElo "2326"]
[Annotator "TA"]
[PlyCount "38"]
[EventDate "2022.05.10"]
[EventType "tourn"]
[EventCountry "ESP"]
[SourceTitle "playchess.com"]
[Source "ChessBase"]
[SourceQuality "1"]
[TimeControl "5400+30"]

{[%evp 35,38,0,0,0,0]} 1. e4 c5 2. Nf3 d6 3. d4 cxd4 4. Nxd4 Nf6 5. Nc3 a6 6. Bg5 e6 7. f4 Qb6 8. Qd2 Qxb2 9. Rb1 Qa3 10. f5 Nc6 11. fxe6 fxe6 12. Nxc6 bxc6 13. Be2 Be7 14. O-O O-O 15. Rb3 Qc5+ 16. Be3 Qe5 17. Bf4 Qc5+ {[#]} 18. Be3 $146 ({Predecessor:} 18. Kh1 Ng4 19. h3 e5 20. Na4 Qa7 21. hxg4 exf4 22. Nb6 Be6 23. Nxa8 Bxb3 24. axb3 Qxa8 25. Ra1 Bf6 26. Rxa6 {1-0 (44) Ivanchuk,V (2748)-Grischuk,A (2756) Nice 2010}) 18... Qe5 19. Bf4 {B97: Sicilian Najdorf: Poisoned Pawn.} Qc5+ {An interesting draw.} 1/2-1/2

[Event "VII GM Barcelona CC 2022"]
[Site "Barcelona"]
[Date "2022.05.10"]
[Round "1.3"]
[White "Gines Esteo, Pedro Antonio"]
[Black "Roshka, Yevgeniy"]
[Result "0-1"]
[ECO "E90"]
[WhiteElo "2434"]
[BlackElo "2468"]
[Annotator "TA"]
[PlyCount "100"]
[EventDate "2022.05.10"]
[EventType "tourn"]
[EventCountry "ESP"]
[SourceTitle "playchess.com"]
[Source "ChessBase"]
[SourceQuality "1"]
[TimeControl "5400+30"]

{[%evp 22,100,38,21,46,28,26,20,32,6,14,0,8,0,16,0,22,0,1,3,10,-41,-45,-62,-49,-43,-44,-209,-197,-304,-301,-385,-412,-408,-366,-355,-366,-349,-377,-364,-368,-350,-353,-525,-414,-435,-430,-421,-426,-565,-558,-825,-551,-543,-544,-518,-527,-552,-557,-562,-500,-499,-490,-489,-489,-485,-486,-521,-475,-561,-561,-536,-528,-1090,-1179,-6125,-6081,-5813,-5833,-2572,-1625]} 1. d4 {[%emt 0:00:05]} Nf6 {[%emt 0:03:01]} 2. c4 {[%emt 0:04:17]} c5 {[%emt 0:00:25]} 3. d5 {[%emt 0:00:20]} e6 {[%emt 0:00:31]} 4. Nc3 {[%emt 0:00:36]} d6 {[%emt 0:00:35]} 5. e4 {[%emt 0:01:57]} g6 {[%emt 0:00:07]} 6. Bd3 {[%emt 0:02:20]} Bg7 {[%emt 0:00:39]} 7. h3 {[%emt 0:01:19]} O-O {[%emt 0:00:17]} 8. Nf3 {[%emt 0:02:08]} Na6 {[%emt 0:00:03]} 9. O-O {[%emt 0:02:12]} Nc7 {[%emt 0:00:47]} 10. Bg5 {[%emt 0:09:16]} h6 {[%emt 0:01:56]} 11. Be3 {[%emt 0:00:07]} exd5 {[%emt 0:00:42]} 12. exd5 {[%emt 0:02:26]} (12. Nxd5 Nfxd5 13. cxd5 (13. exd5 b5 $11) 13... f5 $11) 12... b5 $1 {[%emt 0:00:27] E90: King's Indian: Classical: Early deviations and 6 h3.} 13. Qd2 {[%emt 0:00:38]} bxc4 {[%emt 0:03:09]} 14. Bxc4 {[%emt 0:00:05]} Kh7 {[%emt 0:00:11] The position is equal.} 15. Rfe1 {[%emt 0:02:36]} Rb8 {[%emt 0:02:12]} 16. Bf4 {[%emt 0:06:07]} Nh5 {[%emt 0:00:42] Threatens to win with ...Rb4.} 17. Bh2 {[%emt 0:01:03]} f5 {[%emt 0:08:45]} 18. Re2 {[%emt 0:05:56] [#]} g5 $146 {[%emt 0:06:31]} ({Predecessor:} 18... Rb4 19. b3 Qf6 20. Rae1 Qxc3 21. Qxc3 Bxc3 22. Re7+ Kg8 23. Rxc7 Bxe1 24. Bxd6 Re8 25. Bxc5 {1-0 (46) Suba,M (2500)-Marin,M (2515) Badalona 1993}) 19. Qc2 {[%emt 0:01:04]} (19. Rae1 {seems wilder.} Rb4 20. b3 g4 21. hxg4 fxg4 22. Re6) 19... Kh8 {[%emt 0:01:51]} 20. Rae1 {[%emt 0:09:03]} Nf6 {[%emt 0:18:12]} 21. Re6 {[%emt 0:10:14]} Bxe6 $15 {[%emt 0:03:43]} 22. dxe6 {[%emt 0:00:06]} Ng8 {[%emt 0:00:23]} (22... Ne4 23. Nxe4 fxe4 24. Qxe4 $16) 23. Qd3 {[%emt 0:18:45]} Rb6 {[%emt 0:05:09]} (23... Rxb2 $2 24. Bxd6 Bd4 25. Bxf8 (25. Nxd4 Qxd6 26. Nxf5 Qxd3 $11) 25... Bxf2+ 26. Kf1 Qxd3+ 27. Bxd3 $16) 24. b4 $2 {[%emt 0:14:13] This costs White the game.} (24. Bb3 $15) 24... Rxb4 $19 {[%emt 0:07:31][%cal Bb6b4,Bb4d4,Bd4d3][%mdl 32]} 25. Nd2 {[%emt 0:00:01]} (25. e7 $142 Nxe7 26. Rxe7 Qxe7 27. Bxd6) 25... f4 {[%emt 0:04:38][%cal Od6d5]} 26. a3 {[%emt 0:02:32] [#]} d5 $1 {[%emt 0:03:17]} 27. Ba2 {[%emt 0:03:23]} (27. axb4 dxc4 28. Qc2 cxb4 $19) 27... Rd4 {[%emt 0:04:20]} 28. Qc2 {[%emt 0:00:02]} c4 {[%emt 0:01:54]} 29. Bb1 {[%emt 0:00:20][%csl Gb1][%cal Rc2h7]} Rd3 {[%emt 0:00:01]} 30. Nxd5 {[%emt 0:00:07]} Qxd5 {[%emt 0:02:37]} ({Worse is} 30... Nxd5 31. Nxc4 Nc3 32. Qxd3 Nxb1 33. Qxb1 $14) 31. Nxc4 {[%emt 0:00:01] [#]} Rd8 $1 {[%emt 0:00:12]} 32. Kh1 {[%emt 0:01:04] [#]} (32. e7 $142 Nxe7 33. Bxf4 (33. Qxd3 $2 {perishes.} Qxd3 34. Bxd3 Rxd3 $19) 33... gxf4 34. Qxd3 Qxd3 35. Bxd3 Rxd3 36. Rxe7) (32. Bxf4 gxf4) 32... Ne7 $1 {[%emt 0:02:16]} 33. Qxd3 {[%emt 0:01:58]} Qxd3 {[%emt 0:00:03] Black is clearly winning.} 34. Bxd3 {[%emt 0:00:07]} Rxd3 {[%emt 0:00:02]} 35. f3 {[%emt 0:00:07]} Bc3 {[%emt 0:00:33]} 36. Re4 {[%emt 0:00:13]} Bd4 {[%emt 0:00:26]} 37. Bg1 {[%emt 0:00:18]} Bxg1 {[%emt 0:00:07]} 38. Kxg1 {[%emt 0:00:02]} Kg7 {[%emt 0:00:13]} 39. h4 {[%emt 0:00:14]} Kf6 {[%emt 0:00:31]} 40. Ne5 {[%emt 0:00:02]} Rd1+ {[%emt 0:00:06]} 41. Kh2 {[%emt 0:00:06]} Ncd5 {[%emt 0:01:18] aiming for ...Ne3.} 42. hxg5+ {[%emt 0:00:46]} hxg5 {[%emt 0:00:03] And now ...Ne3 would win.} 43. Ng4+ {[%emt 0:01:27]} Kg6 {[%emt 0:00:19]} 44. Ra4 {[%emt 0:01:19]} Nc6 {[%emt 0:00:30]} 45. Ra6 {[%emt 0:00:26]} Nb6 {[%emt 0:00:19]} 46. Nf2 {[%emt 0:00:58]} Rd6 {[%emt 0:01:00]} 47. a4 {[%emt 0:00:24]} Rxe6 {[%emt 0:00:59] White must now prevent ...Nd7.} 48. a5 {[%emt 0:00:18]} Nd7 {[%emt 0:00:14]} 49. Nd3 {[%emt 0:00:08]} Ndb8 {[%emt 0:00:05]} 50. Nc5 {[%emt 0:00:15]} Re3 {[%emt 0:00:07] Weighted Error Value: White=0.54/Black=0.16 (very precise)} 0-1

[Event "VII GM Barcelona CC 2022"]
[Site "Barcelona"]
[Date "2022.05.10"]
[Round "1.4"]
[White "Alvarez Albiol, Victor"]
[Black "Sosa, Tomas"]
[Result "1-0"]
[ECO "B51"]
[WhiteElo "2328"]
[BlackElo "2552"]
[Annotator "TA"]
[PlyCount "83"]
[EventDate "2022.05.10"]
[EventType "tourn"]
[EventCountry "ESP"]
[SourceTitle "playchess.com"]
[Source "ChessBase"]
[SourceQuality "1"]
[TimeControl "5400+30"]

{[%evp 10,83,22,26,58,0,26,0,0,0,0,0,0,0,0,0,6,14,17,21,25,18,30,20,36,27,24,22,27,27,32,0,25,0,0,0,21,0,26,0,7,0,17,24,27,14,24,32,100,50,81,67,455,462,460,465,468,461,457,458,462,463,464,462,542,543,606,601,668,692,685,679,679,655,642,620]} 1. e4 {[%emt 0:00:04]} c5 {[%emt 0:00:25]} 2. Nf3 {[%emt 0:00:05]} d6 {[%emt 0:00:11]} 3. Bb5+ {[%emt 0:00:36]} Nd7 {[%emt 0:02:27]} 4. d4 {[%emt 0:00:56]} cxd4 {[%emt 0:00:34]} 5. Qxd4 {[%emt 0:00:12]} Ngf6 {[%emt 0:00:09]} 6. Bg5 {[%emt 0:02:27]} e6 {[%emt 0:05:09] B51: Sicilian: Moscow Variation (3 Bb5+) without 3...Bd7.} 7. O-O {[%emt 0:01:59]} (7. Nc3 $14) 7... Be7 {[%emt 0:01:59]} 8. c4 {[%emt 0:03:57]} O-O {[%emt 0:00:51] The position is equal.} 9. Nc3 {[%emt 0:06:41]} Qc7 {[%emt 0:00:58]} 10. Bxd7 {[%emt 0:01:08]} Bxd7 {[%emt 0:00:40]} 11. Rac1 {[%emt 0:02:36]} Rfd8 {[%emt 0:05:15]} 12. Rfd1 {[%emt 0:03:46]} Be8 {[%emt 0:01:06]} 13. b3 {[%emt 0:03:42]} a6 {[%emt 0:01:04] [#]} 14. Qd3 $146 {[%emt 0:06:51]} ({Predecessor:} 14. Qd2 Kh8 15. Be3 Ng4 16. Bf4 Qc5 17. h3 Ne5 18. Nd4 Ng6 19. Be3 Qh5 20. f4 {1-0 (30) Smith,A (2235)-Brooke,J (2175) Manchester 1997}) 14... Rac8 {[%emt 0:01:52]} 15. a4 {[%emt 0:03:30]} Qb6 {[%emt 0:06:17]} 16. Be3 {[%emt 0:10:13]} Qa5 {[%emt 0:00:35]} ({Don't play} 16... Qxb3 17. Nd2 Qb4 18. Rb1 $16) 17. Bd2 {[%emt 0:01:30][%cal Oc3d5] Black must now prevent Nd5!} Qh5 {[%emt 0:00:49] Prevents Nd5.} 18. h3 {[%emt 0:01:52]} Nd7 {[%emt 0:02:37]} 19. Nd4 {[%emt 0:09:59]} Bf6 {[%emt 0:04:36] And now ...Nc5 would win.} 20. Qe2 {[%emt 0:06:17]} Qg6 {[%emt 0:09:41]} 21. Be1 {[%emt 0:01:00]} Nc5 {[%emt 0:01:22] Threatens to win with ...Bxd4.} 22. Rb1 {[%emt 0:01:47]} Be5 {[%emt 0:03:13]} 23. Qe3 {[%emt 0:02:42]} h5 {[%emt 0:08:48]} 24. f4 {[%emt 0:04:39][%cal Bf2f4,Bf4f5][%mdl 32]} Bf6 {[%emt 0:04:17]} 25. f5 {[%emt 0:04:08]} Bg5 {[%emt 0:05:25]} 26. Qf3 {[%emt 0:02:28]} Qh6 {[%emt 0:01:10]} 27. Kh1 {[%emt 0:03:19]} h4 {[%emt 0:02:10]} 28. Qg4 {[%emt 0:06:22]} Bd7 {[%emt 0:14:02] [#]} (28... b6 $14) 29. Nf3 {[%emt 0:01:04]} (29. b4 $1 $16 {[%cal Rb4c5]} exf5 30. exf5 (30. Nxf5 Bxf5 31. exf5 Nd7 $14) 30... Bxa4 31. bxc5 Bxd1 32. Nxd1) 29... Bf4 {[%emt 0:04:24]} 30. Bxh4 {[%emt 0:03:33]} Nxe4 $2 {[%emt 0:04:02][%mdl 8192] This costs Black the game.} 31. Nxe4 $18 {[%emt 0:00:33][%cal Bc3e4,Be4f6,Bf6d5,Bd5e7][%mdl 32] White is clearly winning.} exf5 {[%emt 0:00:06]} 32. Nf6+ {[%emt 0:00:40]} Kh8 {[%emt 0:10:16]} 33. Qh5 {[%emt 0:00:57]} Bc6 {[%emt 0:00:00]} 34. Qxh6+ {[%emt 0:05:57]} Bxh6 {A strong pair of Bishops.} 35. Nd5 {[%emt 0:00:00]} Re8 {[%emt 0:00:00]} 36. Ne7 {[%emt 0:00:00]} Bxf3 {[%emt 0:00:00]} 37. gxf3 {[%emt 0:01:30][%cal Bg2f3,Bf3f4][%mdl 32]} Rc5 38. Rxd6 {[%emt 0:00:00]} Re5 {[%emt 0:00:00] [#]} 39. Rxh6+ $1 {[%emt 0:00:00]} gxh6 {[%emt 0:00:00]} 40. Bf6+ {[%emt 0:00:00]} Kh7 {[%emt 0:00:00]} 41. Bxe5 {[%emt 0:00:00] Intending Bf6 and mate.} Rxe7 {[%emt 0:00:00]} 42. f4 {[%emt 0:02:30] Weighted Error Value: White=0.08 (flawless) /Black=0.38} 1-0

[Event "VII GM Barcelona CC 2022"]
[Site "Barcelona"]
[Date "2022.05.10"]
[Round "1.5"]
[White "Gonzalez Perez, Arian"]
[Black "Movsziszian, Karen"]
[Result "1/2-1/2"]
[ECO "B08"]
[WhiteElo "2415"]
[BlackElo "2467"]
[Annotator "TA"]
[PlyCount "32"]
[EventDate "2022.05.10"]
[EventType "tourn"]
[EventCountry "ESP"]
[SourceTitle "playchess.com"]
[Source "ChessBase"]
[SourceQuality "1"]
[TimeControl "5400+30"]

{[%evp 22,32,29,20,22,23,31,37,37,0,0,-65,-10]} 1. d4 {[%emt 0:00:32]} d6 {[%emt 0:00:21]} 2. Nf3 {[%emt 0:00:38]} g6 {[%emt 0:00:10]} 3. e4 {[%emt 0:00:30]} Nf6 {[%emt 0:00:27]} 4. Nc3 {[%emt 0:02:17]} Bg7 {[%emt 0:00:03]} 5. Be2 {[%emt 0:00:08]} O-O {[%emt 0:00:06]} 6. O-O {[%emt 0:00:04]} Bg4 {[%emt 0:00:07]} 7. Be3 {[%emt 0:00:47]} Nc6 {[%emt 0:00:06]} 8. d5 {[%emt 0:00:43]} Bxf3 {[%emt 0:00:07]} 9. Bxf3 {[%emt 0:00:03]} Ne5 {[%emt 0:00:05]} 10. Be2 {[%emt 0:00:20]} c6 {[%emt 0:00:02]} 11. a4 {[%emt 0:01:25]} Qa5 {[%emt 0:01:28] 11...Qa5 was played by the boomers.} 12. Ra3 {[%emt 0:01:04]} Ned7 {[%emt 0:08:54] B08: Pirc Defence: Classical System.} 13. Qd2 {[%emt 0:09:39]} Rfc8 {[%emt 0:03:48]} 14. Rb1 {[%emt 1:19:20]} a6 {[%emt 1:21:46] [#]} 15. b4 $146 ({Predecessor:} 15. Qd1 Ne8 16. h4 cxd5 17. Nxd5 Qd8 18. Bg5 Nef6 19. h5 e6 20. Nxf6+ Bxf6 {½-½ (31) Hartl,H (2483)-Tasic,V (2574) LSS email 2010}) 15... Qc7 {[%emt 0:00:30]} 16. Rba1 {[%emt 0:01:00]} ({Better is} 16. Bd4 $11) 16... Qd8 {[%emt 0:00:30] Black took control after the opening.  Weighted Error Value: White=0.24 (precise) /Black=0.02 (flawless)} (16... cxd5 $15 17. exd5 Ne5) 1/2-1/2

[Event "VII GM Barcelona CC 2022"]
[Site "Barcelona"]
[Date "2022.05.11"]
[Round "2.1"]
[White "Pajeken, Jakob Leon"]
[Black "Movsziszian, Karen"]
[Result "1-0"]
[ECO "B06"]
[WhiteElo "2398"]
[BlackElo "2467"]
[Annotator "TA"]
[PlyCount "93"]
[EventDate "2022.05.10"]
[EventType "tourn"]
[EventCountry "ESP"]
[SourceTitle "playchess.com"]
[Source "ChessBase"]
[SourceQuality "1"]
[TimeControl "5400+30"]

{[%evp 9,93,36,38,22,36,38,27,27,59,17,31,10,16,-21,-25,-27,-13,-36,-14,-75,-16,-41,-12,-25,8,-5,0,-1,25,20,74,66,82,58,61,52,79,82,74,77,79,72,141,136,127,129,160,158,149,135,195,195,326,331,311,334,334,328,438,412,348,343,439,433,410,427,463,458,463,457,443,435,589,587,547,543,2651,2475,1390,1379,29979,29980,29979,29980,29969,5971]} 1. e4 {[%emt 1:31:00]} d6 {[%emt 0:00:57]} 2. d4 {[%emt 0:00:18]} g6 {[%emt 0:00:03]} 3. Nc3 {[%emt 0:00:10]} Bg7 {[%emt 0:00:08]} 4. Be3 {[%emt 1:31:54]} a6 {[%emt 0:00:21]} 5. h4 {[%emt 0:00:23]} h5 {[%emt 0:01:19]} 6. Nf3 {[%emt 0:00:33] B06: Modern Defence.} Nf6 {[%emt 0:00:43]} 7. Ng5 {[%emt 1:32:17]} Ng4 {[%emt 0:03:29]} 8. Bf4 {[%emt 0:00:11] White has an edge.} f6 {[%emt 0:07:13] [#]} 9. Nf3 $146 {[%emt 0:02:30]} ({Predecessor:} 9. Nh3 Nc6 10. f3 Nh6 11. Qd2 e5 12. dxe5 dxe5 13. Bxh6 Rxh6 14. Qxd8+ Nxd8 15. Nd5 {1-0 (60) Maslova,P (1761)-Makeeva,T (1950) Togliatti 2012}) 9... e5 {[%emt 0:00:46]} 10. Bg3 {[%emt 0:01:55]} Be6 {[%emt 0:11:29]} 11. dxe5 {[%emt 0:06:03]} dxe5 {[%emt 0:01:37]} 12. Qxd8+ {[%emt 0:00:57]} Kxd8 {[%emt 0:00:01]} 13. O-O-O+ {[%emt 0:00:59]} Nd7 {[%emt 0:01:23]} (13... Ke7 {keeps more tension.} 14. b3 Bh6+ 15. Kb2 Nd7) 14. Nd5 {[%emt 0:01:17]} (14. Ne1 $11) 14... Re8 {[%emt 0:12:13]} ({Black should play} 14... Bh6+ $17 15. Kb1 Bxd5 16. Rxd5 Ke7) 15. Bc4 {[%emt 0:04:31]} b5 {[%emt 0:56:18]} 16. Bb3 {[%emt 0:00:55]} Ra7 {[%emt 0:15:01]} 17. Rhe1 {[%emt 0:18:36]} Kc8 {[%emt 0:02:00]} 18. Nd2 {[%emt 0:03:07]} a5 {[%emt 0:04:20] Hoping for ...a4.} 19. Nc3 {[%emt 0:13:19][%cal Bd5c3,Bc3b1,Bb1d2,Bd2c4][%mdl 32]} (19. f3 {[#]} a4 $1 20. fxg4 Bxg4 $15) (19. a4 {with more complications.} c6 20. f3 Bh6 21. fxg4 cxd5 22. g5) 19... c6 {[%emt 0:06:12]} (19... Bxb3 $11 20. cxb3 Rb7) 20. f3 {[%emt 0:02:18] aiming for Bxe6.} Nh6 {[%emt 0:00:16]} 21. a4 {[%emt 0:01:15]} b4 {[%emt 0:01:31]} 22. Ncb1 {[%emt 0:01:07]} Bf8 {[%emt 0:03:33]} 23. Bxe6 {[%emt 0:04:58] White stays focused until the end.} Rxe6 {[%emt 0:25:59]} 24. Nc4 {[%emt 0:36:22] Against Nb6} Nf7 {[%emt 0:02:42]} 25. Nbd2 {[%emt 0:02:50]} Nd6 {[%emt 0:09:38]} (25... Kc7 $142) 26. Bf2 $16 {[%emt 0:01:21]} Ra6 {[%emt 0:00:23]} 27. Nxd6+ {[%emt 0:01:42]} Bxd6 {[%emt 0:02:03]} 28. Nc4 {[%emt 0:00:16]} Bc7 {[%emt 0:03:04]} 29. Re2 {[%emt 0:03:21][%cal Be1e2,Be2d2,Bd2d7,Bd7h7][%mdl 32] 0x0.0021d71925f1dp-1022s more active pieces. The black rooks are badly placed.} Nf8 {[%emt 0:11:06]} (29... f5 $16 {was called for.} 30. b3 Nf6) 30. Red2 {[%emt 0:29:37]} Kb7 {[%emt 0:11:20]} (30... Re8 $142 31. g4 c5 32. gxh5 (32. Bxc5 Rc6 $16) 32... gxh5) 31. Bc5 $18 {[%emt 0:01:06]} Ra8 {[%emt 0:00:00]} 32. Bxf8 {[%emt 0:00:22]} Rxf8 {[%emt 0:00:00]} 33. Rd7 {[%emt 0:00:08] Against Re7} f5 {[%emt 0:00:00]} 34. Rh7 {[%emt 0:24:26]} Kb8 {[%emt 0:00:00]} 35. Rdd7 {[%emt 0:21:48]} Rc8 {[%emt 0:00:00] [#]} 36. Nxa5 $1 {[%emt 0:07:55][%mdl 512]} fxe4 {[%emt 0:00:00] [#]} (36... Bxa5 $2 37. Rb7+ Ka8 38. Ra7+ Kb8 39. Rhb7#) (36... Rd6 37. Rxd6) 37. fxe4 {[%emt 0:00:04]} Rf6 {[%emt 0:00:00] [#]} (37... Bxa5 $2 38. Rb7+ Ka8 39. Ra7+ Kb8 40. Rhb7#) (37... Rd6 38. Rxd6) 38. b3 $1 {[%emt 0:00:21]} c5 {[%emt 0:00:00] [#]} (38... Bxa5 $2 39. Rb7+ Ka8 40. Ra7+ Kb8 41. Rhb7#) (38... Rd6 39. Rxd6) 39. Kb2 $1 {[%emt 0:14:56]} Rd6 {[%emt 0:01:44] [#]} (39... Bxa5 $2 40. Rb7+ Ka8 41. Ra7+ Kb8 42. Rhb7#) (39... Rb6 40. Nc4) 40. Rde7 {[%emt 0:00:53]} Rd2 {[%emt 0:00:38]} (40... Bxa5 $2 {gets mated.} 41. Rb7+ Ka8 42. Ra7+ Kb8 43. Rhb7#) (40... Ra6 41. Nc4) 41. Nc6+ {[%emt 0:00:45]} Kb7 {[%emt 0:00:05]} 42. Nxe5 {[%emt 0:00:29]} Rxg2 {[%emt 0:00:35]} 43. Nc4 {[%emt 0:00:22] And now Nd6+ would win.} Kb8 {[%emt 0:01:18]} 44. e5 {[%emt 0:00:55]} g5 {[%emt 0:02:02]} 45. Nd6 {[%emt 0:00:41] White mates.} Re2 {[%emt 0:00:32]} 46. hxg5 {[%emt 0:00:32]} Rxe5 {[%emt 0:00:18]} 47. Nxc8 {[%emt 0:00:10] Weighted Error Value: White=0.09 (flawless) /Black=0.45} 1-0